Department Family,Entity,Date,Expense Type,Expense Area,Supplier,Transaction Number,AP Amount,VAT Registration Number,Purchase Invoice Number,
Department of Health,Bridgewater Community Healthcare NHS Foundation Trust,9/30/2017,Computer Software/License,Computing,PHOENIX PARTNERSHIP (LEEDS) LTD,22536067,"148,359.62",721671841,7404,
Department of Health,Bridgewater Community Healthcare NHS Foundation Trust,9/30/2017,Computer Software/License,Computing,PHOENIX PARTNERSHIP (LEEDS) LTD,23429160,"131,238.05",721671841,7707,
Department of Health,Bridgewater Community Healthcare NHS Foundation Trust,9/30/2017,Computer Software/License,Computing,PHOENIX PARTNERSHIP (LEEDS) LTD,23429161,"148,359.62",721671841,7708,
Department of Health,Bridgewater Community Healthcare NHS Foundation Trust,9/30/2017,Audit Fees: Internal,Finance,ROYAL LIVERPOOL&BROADGREEN UNIVERSITY HOSPITALS NHS TRUST (THE),23992223,"32,830.00",654966000,8610071765,
Department of Health,Bridgewater Community Healthcare NHS Foundation Trust,9/30/2017,Grants,Health Care Libraries,WIRRAL UNIVERSITY TEACHING HOSPITAL NHS FOUNDATION TRUST,24034986,"40,000.00",654952016,8510028162,
Department of Health,Bridgewater Community Healthcare NHS Foundation Trust,9/30/2017,Grants,Health Care Libraries,EAST CHESHIRE NHS TRUST,24046418,"35,000.00",654919892,17498506,
Department of Health,Bridgewater Community Healthcare NHS Foundation Trust,9/30/2017,Drugs,Medicines Management,NHS BUSINESS SERVICES AUTHORITY,24106543,"92,028.04",654434729,1000052748,
Department of Health,Bridgewater Community Healthcare NHS Foundation Trust,9/30/2017,SrvcsRecd-FoundationTrust,Offender Health - Risley,GREATER MANCHESTER WEST MENTAL HEALTH NHS FOUNDATION TRUST,24119707,"44,339.93",654929594,0000025536,
Department of Health,Bridgewater Community Healthcare NHS Foundation Trust,9/30/2017,SrvcsRecd-FoundationTrust,Offender Health HM Prison Healthcare (Hindley),GREATER MANCHESTER WEST MENTAL HEALTH NHS FOUNDATION TRUST,24119707,"77,730.56",654929594,0000025536,
Department of Health,Bridgewater Community Healthcare NHS Foundation Trust,9/30/2017,SrvcsRecd-FoundationTrust,General Management,NORTH WEST BOROUGHS HEALTHCARE NHS FOUNDATION TRUST,24162348,"82,650.00",,16034934,
Department of Health,Bridgewater Community Healthcare NHS Foundation Trust,9/30/2017,Lease Rents,Widnes HCRC,COMMUNITY HEALTH PARTNERSHIPS LTD,24187445,"75,708.44",GB782562113,0060039662,
Department of Health,Bridgewater Community Healthcare NHS Foundation Trust,9/30/2017,Lease Rents,Bath Street,COMMUNITY HEALTH PARTNERSHIPS LTD,24187448,"67,568.41",GB782562113,0060039649,
Department of Health,Bridgewater Community Healthcare NHS Foundation Trust,9/30/2017,Lease Rents,Child Development Centre Orford,COMMUNITY HEALTH PARTNERSHIPS LTD,24187448,"53,561.95",GB782562113,0060039649,
Department of Health,Bridgewater Community Healthcare NHS Foundation Trust,9/30/2017,Lease Rents,Boston House,COMMUNITY HEALTH PARTNERSHIPS LTD,24187451,"76,010.17",GB782562113,0060039648,
Department of Health,Bridgewater Community Healthcare NHS Foundation Trust,9/30/2017,Lease Rents,Chandler House,COMMUNITY HEALTH PARTNERSHIPS LTD,24187451,"54,666.70",GB782562113,0060039648,
Department of Health,Bridgewater Community Healthcare NHS Foundation Trust,9/30/2017,Lease Rents,Claire House,COMMUNITY HEALTH PARTNERSHIPS LTD,24187451,"37,432.13",GB782562113,0060039648,
Department of Health,Bridgewater Community Healthcare NHS Foundation Trust,9/30/2017,Lease Rents,Leigh Infirmary,COMMUNITY HEALTH PARTNERSHIPS LTD,24187451,"105,112.24",GB782562113,0060039648,
Department of Health,Bridgewater Community Healthcare NHS Foundation Trust,9/30/2017,Lease Rents,Pemberton,COMMUNITY HEALTH PARTNERSHIPS LTD,24187451,"36,911.47",GB782562113,0060039648,
Department of Health,Bridgewater Community Healthcare NHS Foundation Trust,9/30/2017,Lease Rents,Platt Bridge,COMMUNITY HEALTH PARTNERSHIPS LTD,24187451,"77,966.28",GB782562113,0060039648,
Department of Health,Bridgewater Community Healthcare NHS Foundation Trust,9/30/2017,Lease Rents,Widnes HCRC,COMMUNITY HEALTH PARTNERSHIPS LTD,24187465,"75,708.44",GB782562113,0060040360,
Department of Health,Bridgewater Community Healthcare NHS Foundation Trust,9/30/2017,Lease Rents,Bath Street,COMMUNITY HEALTH PARTNERSHIPS LTD,24187468,"67,568.41",GB782562113,0060040391,
Department of Health,Bridgewater Community Healthcare NHS Foundation Trust,9/30/2017,Lease Rents,Child Development Centre Orford,COMMUNITY HEALTH PARTNERSHIPS LTD,24187468,"53,561.95",GB782562113,0060040391,
Department of Health,Bridgewater Community Healthcare NHS Foundation Trust,9/30/2017,Lease Rents,Boston House,COMMUNITY HEALTH PARTNERSHIPS LTD,24187470,"76,010.17",GB782562113,0060040395,
Department of Health,Bridgewater Community Healthcare NHS Foundation Trust,9/30/2017,Lease Rents,Chandler House,COMMUNITY HEALTH PARTNERSHIPS LTD,24187470,"54,666.70",GB782562113,0060040395,
Department of Health,Bridgewater Community Healthcare NHS Foundation Trust,9/30/2017,Lease Rents,Claire House,COMMUNITY HEALTH PARTNERSHIPS LTD,24187470,"37,432.13",GB782562113,0060040395,
Department of Health,Bridgewater Community Healthcare NHS Foundation Trust,9/30/2017,Lease Rents,Leigh Infirmary,COMMUNITY HEALTH PARTNERSHIPS LTD,24187470,"103,498.40",GB782562113,0060040395,
Department of Health,Bridgewater Community Healthcare NHS Foundation Trust,9/30/2017,Lease Rents,Pemberton,COMMUNITY HEALTH PARTNERSHIPS LTD,24187470,"36,581.33",GB782562113,0060040395,
Department of Health,Bridgewater Community Healthcare NHS Foundation Trust,9/30/2017,Lease Rents,Platt Bridge,COMMUNITY HEALTH PARTNERSHIPS LTD,24187470,"77,966.28",GB782562113,0060040395,
Department of Health,Bridgewater Community Healthcare NHS Foundation Trust,9/30/2017,SrvcsRecd-FoundationTrust,Midwifery - Halton,WARRINGTON & HALTON HOSPITALS NHS FOUNDATION TRUST,24207906,"32,891.00",654404741,15364336,
Department of Health,Bridgewater Community Healthcare NHS Foundation Trust,9/30/2017,Services Received - NHSTs,IT Systems and Management,ST HELENS & KNOWSLEY HOSPITALS NHS TRUST,24207908,"62,222.19",654943996,16768285,
Department of Health,Bridgewater Community Healthcare NHS Foundation Trust,9/30/2017,Services Received - NHSTs,IT Systems and Management,ST HELENS & KNOWSLEY HOSPITALS NHS TRUST,24207910,"62,222.19",654943996,16768293,
Department of Health,Bridgewater Community Healthcare NHS Foundation Trust,9/30/2017,Drugs,Offender Health - Wymott,LLOYDS PHARMACY LTD,24207913,"35,449.43",222516987,63365,
Department of Health,Bridgewater Community Healthcare NHS Foundation Trust,9/30/2017,Drugs,Offender Health - Wymott,LLOYDS PHARMACY LTD,24207916,"45,725.45",222516987,63823,
Department of Health,Bridgewater Community Healthcare NHS Foundation Trust,9/30/2017,Drugs,Offender Health - Wymott,LLOYDS PHARMACY LTD,24207918,"41,450.37",222516987,63368,
Department of Health,Bridgewater Community Healthcare NHS Foundation Trust,9/30/2017,Drugs,Offender Health - Garth,LLOYDS RETAIL CHEMISTS LTD,24207921,"27,056.72",,63820,
Department of Health,Bridgewater Community Healthcare NHS Foundation Trust,9/30/2017,Secndd staff frm othr org,Offender Health - Wymott,NATIONAL OFFENDER MANAGEMENT SERVICE,24207932,"25,514.03",,2114930,
Department of Health,Bridgewater Community Healthcare NHS Foundation Trust,9/30/2017,Drugs,Offender Health - Wymott,LLOYDS PHARMACY LTD,24207941,"41,370.04",222516987,64292,
Department of Health,Bridgewater Community Healthcare NHS Foundation Trust,9/30/2017,Drugs,Offender Health - Garth,LLOYDS PHARMACY LTD,24207945,"27,149.97",222516987,64290,
Department of Health,Bridgewater Community Healthcare NHS Foundation Trust,9/30/2017,Services Received - NHSTs,IT Systems and Management,ST HELENS & KNOWSLEY HOSPITALS NHS TRUST,24207994,"62,222.19",654943996,16768790,
Department of Health,Bridgewater Community Healthcare NHS Foundation Trust,9/30/2017,Commercial Sector,ICS,CUERDEN DEVELOPMENTS LTD,24208000,"168,045.83",,CRT1706,
Department of Health,Bridgewater Community Healthcare NHS Foundation Trust,9/30/2017,Continence Products,Continence Adult - Warrington,SCA HYGIENE PRODUCTS UK LTD,24232051,"48,915.26",600433106,6401292359,
Department of Health,Bridgewater Community Healthcare NHS Foundation Trust,9/30/2017,Hlthcre-Foundation Trsts,Midwifery - Halton,WARRINGTON & HALTON HOSPITALS NHS FOUNDATION TRUST,24232053,"32,891.00",654404741,15364887,
Department of Health,Bridgewater Community Healthcare NHS Foundation Trust,9/30/2017,Lease Rents,Widnes HCRC,COMMUNITY HEALTH PARTNERSHIPS LTD,24232114,"75,820.46",GB782562113,0060044426,
Department of Health,Bridgewater Community Healthcare NHS Foundation Trust,9/30/2017,Lease Rents,Boston House,COMMUNITY HEALTH PARTNERSHIPS LTD,24232115,"76,010.17",GB782562113,0060044444,
Department of Health,Bridgewater Community Healthcare NHS Foundation Trust,9/30/2017,Lease Rents,Chandler House,COMMUNITY HEALTH PARTNERSHIPS LTD,24232115,"54,666.70",GB782562113,0060044444,
Department of Health,Bridgewater Community Healthcare NHS Foundation Trust,9/30/2017,Lease Rents,Claire House,COMMUNITY HEALTH PARTNERSHIPS LTD,24232115,"37,432.13",GB782562113,0060044444,
Department of Health,Bridgewater Community Healthcare NHS Foundation Trust,9/30/2017,Lease Rents,Leigh Infirmary,COMMUNITY HEALTH PARTNERSHIPS LTD,24232115,"103,498.40",GB782562113,0060044444,
Department of Health,Bridgewater Community Healthcare NHS Foundation Trust,9/30/2017,Lease Rents,Pemberton,COMMUNITY HEALTH PARTNERSHIPS LTD,24232115,"36,581.33",GB782562113,0060044444,
Department of Health,Bridgewater Community Healthcare NHS Foundation Trust,9/30/2017,Lease Rents,Platt Bridge,COMMUNITY HEALTH PARTNERSHIPS LTD,24232115,"77,966.28",GB782562113,0060044444,
Department of Health,Bridgewater Community Healthcare NHS Foundation Trust,9/30/2017,Lease Rents,Bath Street,COMMUNITY HEALTH PARTNERSHIPS LTD,24232116,"67,596.91",GB782562113,0060044440,
Department of Health,Bridgewater Community Healthcare NHS Foundation Trust,9/30/2017,Lease Rents,Child Development Centre Orford,COMMUNITY HEALTH PARTNERSHIPS LTD,24232116,"53,561.95",GB782562113,0060044440,
Department of Health,Bridgewater Community Healthcare NHS Foundation Trust,9/30/2017,External Consultancy Fees,General Management,FOUNDATION FOR LIFE LTD,24266513,"30,000.00",823833233,SI10398,
